fUSD/lending_fUSD_20260412
["ID","MTS","AMOUNT","RATE_DAILY","PERIOD"]
[420317087,1775956250447,-150.0,0.00015884,2]
[420317088,1775956250458,-166.66,0.00015885,2]
[420317089,1775956250470,-169.52179159,0.00015887,2]
[420317090,1775956250480,-150.0,0.00015887,2]
[420317091,1775956250489,-150.0,0.00015888,2]
[420317092,1775956250503,-150.0,0.00015888,2]
[420317093,1775956250512,-150.0,0.00015891,2]
[420317094,1775956250521,-600.61679345,0.000159,2]
[420317095,1775956250531,-174.68870565,0.000159,2]
[420317096,1775956250546,-267.86853763,0.000159,2]
[420317097,1775956250562,-159.01923608,0.000159,2]
[420317098,1775956250573,-6233.59995375,0.000159,2]
[420317099,1775956250586,-2200.03806741,0.000159,2]
[420317100,1775956250597,-169.52179159,0.00015903,2]
[420317101,1775956250610,-150.0,0.00015906,2]
[420317102,1775956250635,-150.0,0.00015907,2]
[420317103,1775956250660,-150.0,0.00015907,2]
[420317104,1775956250670,-150.0,0.00015907,2]
[420317105,1775956250690,-150.0,0.00015909,2]
[420317106,1775956250703,-150.0,0.00015909,2]
[420317107,1775956250712,-150.0,0.0001591,2]
[420317108,1775956250737,-169.52179159,0.00015919,2]
[420317109,1775956250747,-150.0,0.00015926,2]
[420317110,1775956250762,-150.0,0.00015926,2]
[420317111,1775956250774,-150.0,0.00015927,2]
[420317112,1775956250788,-150.0,0.0001593,2]
[420317113,1775956250806,-150.0,0.0001593,2]
[420317114,1775956250818,-150.0,0.00015932,2]
[420317115,1775956250832,-169.52179159,0.00015935,2]
[420317116,1775956250849,-150.0,0.00015944,2]
[420317117,1775956250863,-150.0,0.00015944,2]
[420317118,1775956250872,-150.0,0.00015945,2]
[420317119,1775956250887,-169.52179159,0.00015952,2]
[420317120,1775956250898,-150.0,0.00015953,2]
[420317121,1775956250911,-150.0,0.00015954,2]
[420317122,1775956250920,-150.0,0.00015954,2]
[420317123,1775956250931,-150.0,0.00015955,2]
[420317124,1775956250942,-150.0,0.00015963,2]
[420317125,1775956250957,-150.0,0.00015963,2]
[420317126,1775956250967,-150.0,0.00015964,2]
[420317127,1775956250980,-169.52179159,0.00015968,2]
[420317128,1775956250993,-500.0,0.00015973,2]
[420317129,1775956251007,-500.0,0.00015973,2]
[420317130,1775956251023,-500.66736188,0.00015973,2]
[420317131,1775956251036,-500.0,0.00015973,2]
[420317132,1775956251073,-150.0,0.00015977,2]
[420317133,1775956251093,-150.0,0.00015977,2]
[420317134,1775956251105,-150.0,0.00015981,2]
[420317135,1775956251115,-150.0,0.00015981,2]
[420317136,1775956251133,-150.0,0.00015982,2]
[420317137,1775956251150,-169.52179159,0.00015984,2]
[420317138,1775956251159,-159.0806075,0.0001599,2]
[420317139,1775956251173,-541.66,0.00015999,2]
[420317140,1775956251190,-316.43397972,0.00015999,2]
[420317141,1775956251199,-500.0,0.00015999,2]
[420317142,1775956251230,-500.0,0.00015999,2]
[420317143,1775956251241,-500.0,0.00015999,2]
[420317144,1775956251264,-500.0,0.00015999,2]
[420317145,1775956251275,-500.0,0.00015999,2]
[420317146,1775956251297,-150.0,0.00016,2]
[420317147,1775956251319,-150.0,0.00016,2]
[420317148,1775956251355,-282.4025928,0.00016,2]
[420317149,1775956251367,-150.0,0.00016,2]
[420317150,1775956251410,-150.0,0.00016,2]
[420317151,1775956251424,-169.52179159,0.00016,2]
[420317152,1775956251453,-150.0,0.00016,2]
[420317153,1775956251477,-150.0,0.00016,2]
[420317154,1775956251491,-150.0,0.00016,2]
[420317155,1775956251500,-150.0,0.00016,2]
[420317156,1775956251521,-253.13122675,0.00016,2]
[420317157,1775956251548,-206.5566696,0.00016,2]
[420317158,1775956251592,-150.0,0.00016,2]
[420317159,1775956251602,-91876.14405514,0.00016,2]
[420317160,1775956253129,-2542.20023887,0.00016,2]
[420317161,1775956253143,-370.45,0.00016,2]
[420317162,1775956253164,-601.96490377,0.00016,2]
[420317163,1775956294977,882.0,0.0003013,120]
[420317164,1775956295521,1623.77625,0.00029596,120]
[420317165,1775956621402,304.458046,0.00027117,120]
[420317166,1775956691328,500.0,0.0003013,120]
[420317167,1775956712674,507.430079,0.00024402,120]
[420317168,1775956890443,208.610144,0.00024402,120]
[420317169,1775956979213,197.333919,0.0002369,120]
[420317172,1775957411516,381.56,0.000291,120]
[420317178,1775957431818,-155.03,0.00011576,2]
[420317179,1775957431905,-168.44,0.00011673,2]
[420317180,1775957431937,-250.0,0.00013,2]
[420317181,1775957431949,-168.44,0.00013341,2]
[420317182,1775957431979,-2399.0,0.00013699,2]
[420317183,1775957431998,-1200.0,0.00014103,2]
[420317184,1775957432013,-500.0,0.00014104,2]
[420317185,1775957432050,-200.0,0.00014138,2]
[420317187,1775957432061,-150.0,0.000142,2]
[420317189,1775957432077,-300.0,0.0001421,2]
[420317191,1775957432103,-3761.15,0.00014212,2]
[420317193,1775957432113,-846.64,0.00014249,2]
[420317194,1775957432127,-1600.0,0.00014291,2]
[420317196,1775957432146,-309.24,0.00014334,2]
[420317198,1775957432180,-245.5339144,0.000144,2]
[420317200,1775957432203,-150.0,0.000144,2]
[420317202,1775957432213,-168.6,0.00014676,2]
[420317203,1775957432223,-820.989,0.00014676,2]
[420317204,1775957432235,-246.13,0.00014751,2]
[420317205,1775957432244,-150.0,0.00014833,2]
[420317206,1775957432256,-16387.45,0.00014833,2]
[420317207,1775957432266,-200.0,0.00014857,2]
[420317208,1775957432276,-846.64,0.00014961,2]
[420317209,1775957432289,-300.0,0.00015,2]
[420317210,1775957432299,-168.44,0.00015008,2]
[420317211,1775957432308,-8583.8882,0.00015099,2]
[420317212,1775957432318,-12082.3591,0.00015199,2]
[420317213,1775957432329,-1000.0,0.000152,2]
[420317214,1775957432339,-1680.0,0.00015513,2]
[420317215,1775957432352,-846.64,0.00015674,2]
[420317216,1775957432362,-165.4873,0.00015884,2]
[420317217,1775957432372,-455.8,0.00015899,2]
[420317218,1775957432383,-3846.41952657,0.00015899,2]
[420317219,1775957432392,-250.0,0.00015945,2]
[420317220,1775957432401,-301.21,0.00015945,2]
[420317221,1775957432416,-255.0,0.00015961,2]
[420317222,1775957432425,-500.0,0.00015973,2]
[420317223,1775957432435,-4126.42207643,0.00015977,2]
[420317224,1775957432457,-413.48160874,0.00015977,2]
[420317225,1775957432481,-6361.21251121,0.00015977,2]
[420317226,1775957432496,-1466.69204494,0.00015977,2]
[420317227,1775957432511,-178.5790251,0.00015977,2]
[420317228,1775957432521,-180.73436039,0.00015977,2]
[420317229,1775957432531,-500.0,0.00015983,2]
[420317230,1775957432544,-274.92354608,0.00015983,2]
[420317231,1775957432554,-500.0,0.00015983,2]
[420317232,1775957432564,-200.09793193,0.00015983,2]
[420317233,1775957432581,-500.0,0.00015983,2]
[420317234,1775957432591,-500.0,0.00015983,2]
[420317235,1775957432609,-500.0,0.00015983,2]
[420317236,1775957432619,-292.63248342,0.00015983,2]
[420317237,1775957432629,-500.0,0.00015983,2]
[420317238,1775957432638,-500.0,0.00015983,2]
[420317239,1775957432652,-500.0,0.00015983,2]
[420317240,1775957432663,-500.0,0.00015983,2]
[420317241,1775957432673,-500.0,0.00015983,2]
[420317242,1775957432685,-196.39445332,0.00015983,2]
[420317243,1775957432708,-303.60554668,0.00015983,2]
[420317244,1775957432717,-533.69235076,0.00015983,2]
[420317245,1775957432728,-2290.49288094,0.00015984,2]
[420317246,1775957432759,-518.98482723,0.00015984,2]
[420317247,1775957432769,-151.08673777,0.00015984,2]
[420317248,1775957432806,-150.0,0.00015984,2]
[420317249,1775957432820,-500.0,0.00015984,2]
[420317250,1775957432857,-46752.1544218,0.00015998,2]
[420317251,1775957432872,-2297.8600008,0.00015998,2]
[420317252,1775957432900,-8768.80815903,0.00015998,2]
[420317253,1775957432923,-310.44405124,0.00015998,2]
[420317254,1775957432980,-400.45,0.00015998,2]
[420317255,1775957438003,-152.0,0.00015943,30]
[420317256,1775957438014,-4357.0,0.00015998,2]
[420317257,1775957438351,-6266.01454873,0.00015998,2]
[420317259,1775957438364,-500.0,0.00015999,2]
[420317261,1775957438374,-500.0,0.00015999,2]
[420317263,1775957438385,-500.0,0.00015999,2]
[420317265,1775957438395,-500.0,0.00015999,2]
[420317267,1775957438411,-614.88,0.00015999,2]
[420317269,1775957438421,-500.0,0.00015999,2]
[420317271,1775957438432,-500.0,0.00015999,2]
[420317273,1775957438462,-500.0,0.00015999,2]
[420317275,1775957438473,-500.0,0.00015999,2]
[420317277,1775957438503,-500.0,0.00015999,2]
[420317279,1775957438531,-500.0,0.00015999,2]
[420317281,1775957438556,-117.53665363,0.00015999,2]
[420317283,1775957438572,-382.46334637,0.00015999,2]
[420317285,1775957438582,-117.53665363,0.00015999,2]
[420317287,1775957438612,-382.46334637,0.00015999,2]
[420317289,1775957438622,-500.0,0.00015999,2]
[420317291,1775957438641,-500.0,0.00015999,2]
[420317293,1775957438656,-598.29,0.00015999,2]
[420317295,1775957438666,-500.0,0.00015999,2]
[420317297,1775957438677,-500.0,0.00015999,2]
[420317299,1775957438689,-500.0,0.00015999,2]
[420317302,1775957438702,-500.0,0.00015999,2]
[420317305,1775957438713,-500.0,0.00015999,2]
[420317309,1775957438725,-96.65350979,0.00015999,2]
[420317314,1775957438745,-403.34649021,0.00015999,2]
[420317318,1775957438755,-500.0,0.00015999,2]
[420317320,1775957438765,-501.88023738,0.00015999,2]
[420317322,1775957438786,-503.53398784,0.00015999,2]
[420317324,1775957438801,-200.71676956,0.00015999,2]
[420317326,1775957438816,-633.51765463,0.00015999,2]
[420317328,1775957438835,-150.0,0.00016,2]
[420317330,1775957438847,-50307.35360448,0.00016,2]
[420317406,1775957440435,-649.29216344,0.00016,2]
[420317407,1775957440763,-15154.79563883,0.00016,2]
[420317408,1775957440790,-983.6888724,0.00016,2]
[420317410,1775957441081,-2238.27035389,0.00016,2]
[420317411,1775957441091,-21570.28354585,0.00016,2]
[420317415,1775957443459,-2619.9222051,0.00016,2]
[420317416,1775957443472,-8696.59075072,0.00016,2]
[420317422,1775957445877,-3297.86000066,0.00016,2]
[420317423,1775957446074,-23291.23450175,0.00016,2]
[420317520,1775957574771,500.0,0.00030137,120]
[420317521,1775957584556,500.0,0.00030137,120]
[420317522,1775957609816,501.2,0.00030137,120]
[420317523,1775957724707,1405.01,0.00030137,120]
[420317529,1775958112540,4754.68984753,0.0003013,120]
[420317530,1775958459688,2810.57,0.00030129,120]
[420317531,1775958482517,1964.9,0.0003,120]
[420317543,1775958631781,-277.40616358,0.0001,2]
[420317546,1775958631798,-1462.48498652,0.00011,2]
[420317548,1775958631814,-3577.35731868,0.00011,2]
[420317551,1775958631824,-196.68160851,0.00011,2]
[420317554,1775958631838,-600.0,0.00011,2]
[420317556,1775958631848,-200.44430301,0.00013798,2]
[420317559,1775958631858,-252.1464174,0.00013798,2]
[420317561,1775958631868,-300.0,0.00013799,2]
[420317563,1775958631882,-150.0,0.000138,2]
[420317565,1775958631891,-500.0,0.00013804,2]
[420317566,1775958631900,-2500.0,0.00013812,2]
[420317567,1775958631910,-300.0,0.00013817,2]
[420317568,1775958631919,-141.50440585,0.00013817,2]
[420317569,1775958631934,-158.49559415,0.00013817,2]
[420317570,1775958631944,-241.50440585,0.00013817,2]
[420317571,1775958631956,-148.58039647,0.00013817,2]
[420317572,1775958631967,-1200.0,0.00013826,2]
[420317573,1775958631976,-600.0,0.00013827,2]
[420317574,1775958631986,-271.41960353,0.00013849,2]
[420317575,1775958631998,-700.37599953,0.00013849,2]
[420317576,1775958632011,-1528.20439694,0.00013849,2]
[420317577,1775958632021,-2500.0,0.00013849,2]
[420317578,1775958632031,-2500.0,0.00013849,2]
[420317579,1775958632040,-1538.80232852,0.00013857,2]
[420317580,1775958632053,-353.98356,0.00013857,2]
[420317581,1775958632066,-107.21411148,0.00013857,2]
[420317582,1775958632075,-168.22751633,0.00013869,2]
[420317583,1775958632086,-166.66,0.00013897,2]
[420317584,1775958632096,-500.21086444,0.000139,2]
[420317585,1775958632108,-503.21654853,0.000139,2]
[420317586,1775958632120,-500.58625655,0.000139,2]
[420317587,1775958632129,-503.5721369,0.000139,2]
[420317588,1775958632138,-500.27140265,0.000139,2]
[420317589,1775958632155,-10000.0,0.000139,2]
[420317590,1775958632168,-1253.01,0.00014146,2]
[420317591,1775958632177,-166.66,0.0001419,2]
[420317592,1775958632194,-714.41,0.0001441,2]
[420317593,1775958632211,-166.66,0.00014482,2]
[420317594,1775958632222,-6174.7534,0.00014733,2]
[420317595,1775958632236,-166.66,0.00014775,2]
[420317596,1775958632248,-500.0,0.00014887,2]
[420317597,1775958632261,-500.0,0.00014887,2]
[420317598,1775958632307,-500.0,0.00014887,2]
[420317599,1775958632339,-500.0,0.00014887,2]
[420317600,1775958632349,-500.0,0.00014887,2]
[420317601,1775958632358,-500.0,0.00014887,2]
[420317602,1775958632368,-500.0,0.00014887,2]
[420317603,1775958632385,-500.0,0.00014887,2]
[420317604,1775958632395,-500.0,0.00014887,2]
[420317605,1775958632412,-500.0,0.00014887,2]
[420317606,1775958632425,-500.0,0.00014887,2]
[420317607,1775958632435,-500.0,0.00014887,2]
[420317608,1775958632448,-500.0,0.00014887,2]
[420317609,1775958632458,-500.0,0.00014887,2]
[420317610,1775958632472,-500.0,0.00014887,2]
[420317611,1775958632481,-500.0,0.00014887,2]
[420317612,1775958632491,-500.0,0.00014887,2]
[420317613,1775958632506,-500.0,0.00014887,2]
[420317614,1775958632525,-500.0,0.00014887,2]
[420317615,1775958632535,-559.00808665,0.00014887,2]
[420317616,1775958632544,-500.0,0.00014887,2]
[420317617,1775958632558,-150.0,0.00014887,2]
[420317618,1775958632573,-500.0,0.00014887,2]
[420317619,1775958632582,-500.0,0.00014887,2]
[420317620,1775958632594,-500.0,0.00014887,2]
[420317621,1775958632611,-500.0,0.00014887,2]
[420317622,1775958632620,-500.0,0.00014887,2]
[420317623,1775958632628,-515.04360717,0.00014887,2]
[420317624,1775958632656,-150.0,0.00014887,2]
[420317625,1775958632666,-154.05889609,0.00014887,2]
[420317626,1775958632675,-500.0,0.00014887,2]
[420317627,1775958632684,-500.0,0.00014887,2]
[420317628,1775958632696,-500.0,0.00014887,2]
[420317629,1775958632709,-500.0,0.00014887,2]
[420317630,1775958632718,-500.0,0.00014887,2]
[420317631,1775958632728,-339.73723132,0.00014887,2]
[420317632,1775958632740,-411.95,0.00014906,2]
[420317633,1775958632751,-513.0,0.00015026,2]
[420317634,1775958632761,-513.0,0.00015026,2]
[420317635,1775958632770,-513.0,0.00015026,2]
[420317636,1775958632784,-513.0,0.00015026,2]
[420317637,1775958632808,-513.0,0.00015026,2]
[420317638,1775958632817,-513.0,0.00015026,2]
[420317639,1775958632827,-513.0,0.00015026,2]
[420317640,1775958632839,-513.0,0.00015026,2]
[420317641,1775958632855,-513.0,0.00015026,2]
[420317642,1775958632864,-513.0,0.00015026,2]
[420317643,1775958632875,-513.0,0.00015026,2]
[420317644,1775958632887,-513.0,0.00015026,2]
[420317645,1775958632899,-513.0,0.00015026,2]
[420317646,1775958632908,-513.0,0.00015026,2]
[420317647,1775958632919,-513.0,0.00015026,2]
[420317648,1775958632937,-513.0,0.00015026,2]
[420317649,1775958632948,-513.0,0.00015026,2]
[420317650,1775958632957,-513.0,0.00015026,2]
[420317651,1775958632971,-513.0,0.00015026,2]
[420317652,1775958632987,-513.0,0.00015026,2]
[420317653,1775958632997,-513.0,0.00015026,2]
[420317654,1775958633014,-513.0,0.00015026,2]
[420317655,1775958633035,-513.0,0.00015026,2]
[420317656,1775958633045,-519.55588185,0.00015026,2]
[420317657,1775958633067,-316.03014926,0.00015026,2]
[420317658,1775958633089,-166.66,0.00015068,2]
[420317659,1775958633159,-300.0,0.00015098,2]
[420317660,1775958633261,-151.0,0.00015099,2]
[420317661,1775958633321,-516.1477001,0.00015099,2]
[420317662,1775958633344,-151.0,0.00015099,2]
[420317663,1775958633354,-151.0,0.00015099,2]
[420317664,1775958633381,-151.0,0.00015099,2]
[420317665,1775958633391,-151.0,0.00015099,2]
[420317666,1775958633419,-151.0,0.00015099,2]
[420317667,1775958633442,-151.0,0.00015099,2]
[420317668,1775958633452,-151.0,0.00015099,2]
[420317669,1775958633463,-151.0,0.00015099,2]
[420317670,1775958633495,-151.0,0.00015099,2]
[420317671,1775958633505,-151.0,0.00015099,2]
[420317672,1775958633522,-151.0,0.00015099,2]
[420317673,1775958633582,-151.0,0.00015099,2]
[420317674,1775958633598,-170.07374686,0.00015099,2]
[420317675,1775958633611,-246.20604935,0.00015099,2]
[420317676,1775958633631,-600.0,0.00015177,2]
[420317677,1775958633678,-2500.0,0.00015177,2]
[420317678,1775958633698,-500.0,0.00015177,2]
[420317679,1775958633742,-300.0,0.00015177,2]
[420317680,1775958633785,-600.0,0.00015177,2]
[420317681,1775958633798,-500.0,0.00015177,2]
[420317682,1775958633851,-250.0,0.00015177,2]
[420317683,1775958633885,-200.0,0.00015177,2]
[420317684,1775958633922,-250.0,0.00015177,2]
[420317685,1775958633932,-300.17981473,0.00015177,2]
[420317686,1775958633983,-193.3647025,0.00015177,2]
[420317687,1775958634001,-1324.3734,0.00015187,2]
[420317688,1775958634019,-1096.6833,0.00015192,2]
[420317689,1775958634046,-3914.96928978,0.00015192,2]
[420317690,1775958634095,-685.1661905,0.00015192,2]
[420317691,1775958634107,-1216.57072602,0.00015192,2]
[420317692,1775958634117,-273.719,0.00015192,2]
[420317710,1775958638751,-637.31516528,0.00015192,2]
[420317716,1775958638823,-289.72,0.00015192,2]
[420317718,1775958638838,-10246.13562842,0.00015192,2]
[420317720,1775958638851,-2853.8597,0.00015202,2]
[420317722,1775958638873,-24342.6292,0.00015202,2]
[420317724,1775958638885,-1000.0,0.00015202,2]
[420317726,1775958638895,-2500.0,0.00015202,2]
[420317728,1775958638910,-1171.0,0.00015209,2]
[420317730,1775958638922,-188.16123294,0.00015218,2]
[420317732,1775958638930,-501.08927463,0.00015218,2]
[420317734,1775958638941,-500.0,0.00015218,2]
[420317736,1775958638954,-500.0,0.00015218,2]
[420317738,1775958638968,-500.0,0.00015218,2]
[420317740,1775958638980,-500.0,0.00015218,2]
[420317742,1775958638997,-500.0,0.00015218,2]
[420317744,1775958639010,-500.0,0.00015218,2]
[420317745,1775958639035,-500.0,0.00015218,2]
[420317747,1775958639053,-500.0,0.00015218,2]
[420317749,1775958639074,-500.0,0.00015218,2]
[420317751,1775958639098,-500.0,0.00015218,2]
[420317754,1775958639122,-500.0,0.00015218,2]
[420317755,1775958639137,-500.0,0.00015218,2]
[420317757,1775958639147,-358.15700103,0.00015218,2]
[420317759,1775958639160,-500.0,0.00015218,2]
[420317761,1775958639178,-500.0,0.00015218,2]
[420317763,1775958639188,-500.0,0.00015218,2]
[420317765,1775958639198,-501.7802751,0.00015218,2]
[420317767,1775958639209,-520.55240454,0.00015273,2]
[420317769,1775958639226,-503.80888673,0.00015273,2]
[420317771,1775958639236,-7053.24,0.00015292,2]
[420317773,1775958639245,-430.49239496,0.00015301,2]
[420317775,1775958639260,-549.03732342,0.00015301,2]
[420317777,1775958639270,-300.0,0.00015301,2]
[420317779,1775958639285,-345.62500023,0.00015301,2]
[420317781,1775958639299,-206.45833388,0.00015301,2]
[420317784,1775958639309,-243.25460299,0.00015301,2]
[420317786,1775958639320,-365.8,0.00015301,2]
[420317788,1775958639330,-510.51273489,0.00015301,2]
[420317789,1775958639345,-500.0,0.00015301,2]
[420317791,1775958639358,-9460.34427898,0.00015302,2]
[420317794,1775958639370,-271.1248,0.00015302,2]
[420317796,1775958639385,-38705.1093591,0.00015302,2]
[420317799,1775958639418,-20295.76506645,0.00015302,2]
[420317801,1775958639430,-21355.76950782,0.00015302,2]
[420317804,1775958639451,-358.89643186,0.00015302,2]
[420317806,1775958639466,-16599.56131164,0.00015302,2]
[420317808,1775958639478,-5842.36414894,0.00015302,2]
[420317810,1775958639495,-4650.18624403,0.00015302,2]
[420317813,1775958639512,-1035.30565481,0.00015302,2]
[420317816,1775958639525,-1331.3473345,0.00015302,2]
[420317818,1775958639556,-725.379,0.00015302,2]
[420317820,1775958639587,-2159.41324796,0.00015302,2]
[420317822,1775958639618,-42900.0,0.00015302,2]
[420317824,1775958639630,-3812.17095,0.00015302,2]
[420317836,1775958640948,-317.28909103,0.000109,2]
[420317837,1775958640967,-5027.67266391,0.00015302,2]
[420317838,1775958640979,-515.58529976,0.00015319,2]
[420317839,1775958640994,-511.92490553,0.00015319,2]
[420317840,1775958641024,-501.15499979,0.00015319,2]
[420317841,1775958641043,-500.0,0.00015319,2]
[420317842,1775958641061,-508.49349977,0.00015319,2]
[420317843,1775958641074,-500.0,0.00015319,2]
[420317844,1775958641083,-2629.91250021,0.0001532,2]
[420317845,1775958641126,-1101.32937435,0.0001532,2]
[420317846,1775958641139,-685.36212388,0.0001532,2]
[420317847,1775958641159,-11116.21896306,0.00015335,2]
[420317848,1775958641175,-166.66,0.0001536,2]
[420317849,1775958641187,-500.80815768,0.00015373,2]
[420317850,1775958641198,-3610.0,0.00015435,2]
[420317851,1775958641208,-3610.0,0.00015435,2]
[420317852,1775958641220,-3610.0,0.00015435,2]
[420317855,1775958641244,-3610.0,0.00015435,2]
[420317858,1775958641253,-3610.0,0.00015435,2]
[420317860,1775958641262,-3610.0,0.00015435,2]
[420317862,1775958641285,-3610.0,0.00015435,2]
[420317864,1775958641301,-3610.0,0.00015435,2]
[420317866,1775958641311,-3610.0,0.00015435,2]
[420317867,1775958641321,-3610.0,0.00015435,2]
[420317869,1775958641331,-3610.0,0.00015435,2]
[420317870,1775958641346,-3610.0,0.00015435,2]
[420317871,1775958641365,-3610.0,0.00015435,2]
[420317873,1775958641374,-3610.0,0.00015435,2]
[420317875,1775958641383,-3610.0,0.00015435,2]
[420317877,1775958641400,-3610.0,0.00015435,2]
[420317879,1775958641432,-500.0,0.00015435,2]
[420317881,1775958641444,-500.0,0.00015435,2]
[420317883,1775958641465,-500.0,0.00015435,2]
[420317885,1775958641478,-3610.0,0.00015435,2]
[420317888,1775958641488,-500.0,0.00015435,2]
[420317889,1775958641504,-500.0,0.00015435,2]
[420317891,1775958641516,-500.0,0.00015435,2]
[420317893,1775958641526,-3610.0,0.00015435,2]
[420317895,1775958641536,-500.0,0.00015435,2]
[420317897,1775958641555,-500.0,0.00015435,2]
[420317899,1775958641564,-500.0,0.00015435,2]
[420317901,1775958641575,-266.79823943,0.00015435,2]
[420317903,1775958641591,-3610.0,0.00015435,2]
[420317904,1775958641601,-3610.0,0.00015435,2]
[420317905,1775958641610,-3610.0,0.00015435,2]
[420317906,1775958641622,-3610.0,0.00015435,2]
[420317907,1775958641639,-3610.0,0.00015435,2]
[420317908,1775958641650,-3610.83359113,0.00015435,2]
[420317909,1775958641663,-216.438414,0.00015435,2]
[420317910,1775958641676,-216.438414,0.00015435,2]
[420317911,1775958641687,-216.438414,0.00015435,2]
[420317912,1775958641713,-216.438414,0.00015435,2]
[420317913,1775958641723,-373.052927,0.00015435,2]
[420317914,1775958641733,-373.052927,0.00015435,2]
[420317915,1775958641755,-373.052927,0.00015435,2]
[420317916,1775958641777,-373.052927,0.00015435,2]
[420317917,1775958641795,-1038.2500085,0.00015573,5]
[420317918,1775958641819,-599.48467058,0.00015573,2]
[420317919,1775958641828,-216.438414,0.00015574,2]
[420317920,1775958641852,-216.438414,0.00015574,2]
[420317921,1775958641864,-216.438414,0.00015574,2]
[420317922,1775958641878,-216.438414,0.00015574,2]
[420317923,1775958641891,-373.052927,0.00015574,2]
[420317924,1775958641902,-373.052927,0.00015574,2]
[420317925,1775958641917,-373.052927,0.00015574,2]
[420317926,1775958641927,-373.052927,0.00015574,2]
[420317927,1775958641939,-365.8,0.00015575,2]
[420317928,1775958641949,-2000.0,0.00015589,2]
[420317929,1775958641958,-523.71294651,0.00015839,2]
[420317930,1775958641968,-518.89378632,0.00015839,2]
[420317931,1775958641979,-5384.35194099,0.0001584,2]
[420317932,1775958642023,-738.86152533,0.0001584,2]
[420317933,1775958642046,-1049.24108504,0.0001584,2]
[420317934,1775958642068,-2325.60707536,0.0001584,2]
[420317935,1775958642080,-365.8,0.00015849,2]
[420317936,1775958642088,-168.0351,0.0001586,2]
[420317937,1775958642105,-2000.0,0.0001589,2]
[420317938,1775958642116,-1000.0,0.000159,2]
[420317939,1775958642126,-186.92304105,0.000159,2]
[420317940,1775958642142,-179.26802352,0.000159,2]
[420317941,1775958642154,-3463.93125706,0.000159,2]
[420317942,1775958642165,-250.0,0.00015945,2]
[420317943,1775958642174,-258.61,0.00015945,2]
[420317944,1775958642188,-202.08994197,0.00015984,2]
[420317945,1775958642201,-150.63554667,0.00015984,2]
[420317946,1775958642211,-163.39393731,0.00015984,2]
[420317947,1775958642221,-7053.24,0.0001599,2]
[420317948,1775958642237,-151.0,0.00015997,2]
[420317949,1775958642248,-603.3886707,0.00015999,2]
[420317950,1775958642258,-1038.25000851,0.00015999,5]
[420317951,1775958642274,-500.0,0.00015999,2]
[420317952,1775958642283,-500.0,0.00015999,3]
[420317953,1775958642293,-517.3733627,0.00015999,4]
[420317954,1775958642304,-647.37398076,0.00015999,2]
[420317955,1775958642313,-10023.8005473,0.00015999,2]
[420317956,1775958642323,-4310.0820859,0.00015999,2]
[420317957,1775958642334,-41.1974212,0.00016,2]
[420317958,1775958642346,-1711.23017621,0.00016,2]
[420317959,1775958642357,-368782.80252795,0.00016,2]
[420317960,1775958642369,-11725.27169257,0.00016,2]
[420317961,1775958642379,-31761.7146017,0.00016,2]
[420317962,1775958642391,-49344.37694088,0.00016,2]
[420317963,1775958642402,-5766.75147218,0.00016,2]
[420317983,1775958643176,-675.67242057,0.00016,2]
[420317984,1775958643194,-8352.45894229,0.00016,2]